fUSD/lending_fUSD_20250823
["ID","MTS","AMOUNT","RATE_DAILY","PERIOD"]
[381009185,1755939062974,-497.52,0.00013972,2]
[381009186,1755939062984,-662.18,0.00013972,2]
[381009187,1755939062997,-954.6,0.00013972,2]
[381009188,1755939063009,-479.07,0.00013972,2]
[381009189,1755939063019,-400.0,0.00013972,2]
[381009190,1755939063029,-400.0,0.00013972,2]
[381009191,1755939063039,-640.28,0.00013972,2]
[381009192,1755939063050,-403.38991615,0.00013972,2]
[381009193,1755939063060,-247.854652,0.00013972,2]
[381009194,1755939063071,-522.75,0.00013972,2]
[381009195,1755939063082,-400.0,0.00013972,2]
[381009196,1755939063093,-400.0,0.00013972,2]
[381009197,1755939063103,-417.74,0.00013972,2]
[381009198,1755939063113,-1637.01,0.00013972,2]
[381009199,1755939063124,-814.96,0.00013972,2]
[381009200,1755939063134,-400.0,0.00013972,2]
[381009201,1755939063144,-400.0,0.00013972,2]
[381009202,1755939063154,-494.42,0.00013972,2]
[381009203,1755939063164,-650.18,0.00013972,2]
[381009204,1755939063174,-609.58,0.00013972,2]
[381009205,1755939063185,-400.0,0.00013972,2]
[381009206,1755939063195,-241.54089553,0.00013972,2]
[381009207,1755939063205,-400.0,0.00013972,2]
[381009208,1755939063215,-401.28128321,0.00013972,2]
[381009209,1755939063225,-400.0,0.00013972,2]
[381009210,1755939063235,-851.15,0.00013972,2]
[381009211,1755939063245,-812.87,0.00013972,2]
[381009212,1755939063256,-400.0,0.00013972,2]
[381009213,1755939063266,-617.39,0.00013972,2]
[381009214,1755939063276,-400.0,0.00013972,2]
[381009215,1755939063286,-400.0,0.00013972,2]
[381009216,1755939063296,-889.84,0.00013972,2]
[381009217,1755939063306,-546.89,0.00013972,2]
[381009218,1755939063317,-400.0,0.00013972,2]
[381009219,1755939063327,-1040.948882,0.00013972,2]
[381009220,1755939063336,-400.82385422,0.00013972,2]
[381009221,1755939063349,-400.0,0.00013972,2]
[381009222,1755939063359,-400.0,0.00013972,2]
[381009223,1755939063370,-616.89,0.00013972,2]
[381009224,1755939063380,-400.0,0.00013972,2]
[381009225,1755939063391,-554.94,0.00013972,2]
[381009226,1755939063401,-260.95,0.00013972,2]
[381009227,1755939063412,-400.0,0.00013972,2]
[381009228,1755939063422,-566.88,0.00013972,2]
[381009229,1755939063432,-400.0,0.00013972,2]
[381009230,1755939063442,-465.93,0.00013972,2]
[381009231,1755939063453,-400.0,0.00013972,2]
[381009232,1755939063464,-400.0,0.00013972,2]
[381009233,1755939063475,-400.0,0.00013972,2]
[381009234,1755939063485,-400.0,0.00013972,2]
[381009235,1755939063495,-597.99,0.00013972,2]
[381009236,1755939063505,-307.80286881,0.00013972,2]
[381009237,1755939063514,-400.0,0.00013972,2]
[381009238,1755939063525,-523.04,0.00013972,2]
[381009239,1755939063534,-624.17,0.00013972,2]
[381009240,1755939063544,-487.02,0.00013972,2]
[381009241,1755939063554,-400.0,0.00013972,2]
[381009242,1755939063564,-400.0,0.00013972,2]
[381009243,1755939063574,-152.259471,0.00013972,2]
[381009244,1755939063584,-1069.56,0.00013972,2]
[381009245,1755939063594,-400.0,0.00013972,2]
[381009246,1755939063604,-713.78,0.00013972,2]
[381009247,1755939063615,-400.0,0.00013972,2]
[381009248,1755939063625,-400.0,0.00013972,2]
[381009249,1755939063635,-400.0,0.00013972,2]
[381009250,1755939063645,-400.0,0.00013972,2]
[381009251,1755939063655,-400.0,0.00013972,2]
[381009252,1755939063665,-670.62,0.00013972,2]
[381009253,1755939063675,-1107.88,0.00013972,2]
[381009254,1755939063684,-400.0,0.00013972,2]
[381009255,1755939063697,-400.0,0.00013972,2]
[381009256,1755939063707,-702.78,0.00013972,2]
[381009257,1755939063716,-610.8,0.00013972,2]
[381009258,1755939063726,-400.0,0.00013972,2]
[381009259,1755939063736,-400.0,0.00013972,2]
[381009260,1755939063746,-504.67,0.00013972,2]
[381009261,1755939063756,-400.0,0.00013972,2]
[381009262,1755939063766,-749.52,0.00013972,2]
[381009263,1755939063777,-1278.47,0.00013972,2]
[381009264,1755939063787,-401.47512859,0.00013972,2]
[381009265,1755939063798,-400.0,0.00013972,2]
[381009266,1755939063807,-400.0,0.00013972,2]
[381009267,1755939063817,-400.0,0.00013972,2]
[381009268,1755939063827,-400.0,0.00013972,2]
[381009269,1755939063837,-1020.71,0.00013972,2]
[381009270,1755939063847,-400.0,0.00013972,2]
[381009271,1755939063857,-908.33,0.00013972,2]
[381009272,1755939063868,-400.0,0.00013972,2]
[381009273,1755939063879,-401.97,0.00013972,2]
[381009274,1755939063889,-735.04,0.00013972,2]
[381009275,1755939063900,-400.0,0.00013972,2]
[381009276,1755939063910,-1057.46,0.00013972,2]
[381009277,1755939063919,-400.0,0.00013972,2]
[381009278,1755939063929,-1166.3,0.00013972,2]
[381009279,1755939063939,-400.0,0.00013972,2]
[381009280,1755939063949,-400.0,0.00013972,2]
[381009281,1755939063958,-400.0,0.00013972,2]
[381009282,1755939063968,-400.0,0.00013972,2]
[381009283,1755939063978,-1089.7,0.00013972,2]
[381009284,1755939063988,-400.0,0.00013972,2]
[381009285,1755939063998,-400.0,0.00013972,2]
[381009286,1755939064008,-939.39,0.00013972,2]
[381009287,1755939064017,-1009.14,0.00013972,2]
[381009288,1755939064027,-400.0,0.00013972,2]
[381009289,1755939064037,-400.0,0.00013972,2]
[381009290,1755939064047,-513.42,0.00013972,2]
[381009291,1755939064057,-716.75,0.00013972,2]
[381009292,1755939064067,-1006.63,0.00013972,2]
[381009293,1755939064078,-400.0,0.00013972,2]
[381009294,1755939064088,-473.39,0.00013972,2]
[381009295,1755939064098,-7339.97,0.00013972,2]
[381009296,1755939064108,-1801.72,0.00013972,2]
[381009297,1755939064118,-1570.3,0.00013972,2]
[381009298,1755939064128,-2296.87,0.00013972,2]
[381009299,1755939064139,-400.0,0.00013972,2]
[381009300,1755939064150,-400.0,0.00013972,2]
[381009301,1755939064160,-625.46,0.00013972,2]
[381009302,1755939064170,-441.49,0.00013972,2]
[381009303,1755939064180,-1627.36,0.00013972,2]
[381009304,1755939064189,-561.09,0.00013972,2]
[381009305,1755939064200,-400.0,0.00013972,2]
[381009306,1755939064211,-400.0,0.00013972,2]
[381009307,1755939064221,-1020.13,0.00013972,2]
[381009308,1755939064232,-636.99,0.00013972,2]
[381009309,1755939064242,-400.0,0.00013972,2]
[381009310,1755939064252,-400.0,0.00013972,2]
[381009311,1755939064263,-1751.86,0.00013972,2]
[381009312,1755939064272,-680.72,0.00013972,2]
[381009313,1755939064286,-505.72,0.00013972,2]
[381009314,1755939064297,-400.0,0.00013972,2]
[381009315,1755939064306,-1038.57,0.00013972,2]
[381009316,1755939064316,-514.8,0.00013972,2]
[381009317,1755939064326,-638.1,0.00013972,2]
[381009318,1755939064336,-400.0,0.00013972,2]
[381009319,1755939064346,-530.3,0.00013972,2]
[381009320,1755939064356,-567.91,0.00013972,2]
[381009321,1755939064366,-702.49,0.00013972,2]
[381009322,1755939064376,-458.83,0.00013972,2]
[381009323,1755939064385,-586.64,0.00013972,2]
[381009324,1755939064395,-400.0,0.00013972,2]
[381009325,1755939064405,-400.0,0.00013972,2]
[381009326,1755939064414,-400.0,0.00013972,2]
[381009327,1755939064424,-419.44,0.00013972,2]
[381009328,1755939064434,-400.0,0.00013972,2]
[381009329,1755939064443,-776.34,0.00013972,2]
[381009330,1755939064453,-593.25,0.00013972,2]
[381009331,1755939064463,-400.0,0.00013972,2]
[381009332,1755939064472,-669.09,0.00013972,2]
[381009333,1755939064482,-931.49,0.00013972,2]
[381009334,1755939064491,-2892.92,0.00013972,2]
[381009335,1755939064501,-970.7,0.00013972,2]
[381009336,1755939064511,-401.5225347,0.00013972,2]
[381009337,1755939064521,-400.0,0.00013972,2]
[381009338,1755939064530,-827.96,0.00013972,2]
[381009339,1755939064540,-1826.96,0.00013972,2]
[381009340,1755939064551,-400.0,0.00013972,2]
[381009341,1755939064560,-460.04,0.00013972,2]
[381009342,1755939064570,-1226.13,0.00013972,2]
[381009343,1755939064579,-3020.82,0.00013972,2]
[381009344,1755939064588,-611.24,0.00013972,2]
[381009345,1755939064598,-2118.54,0.00013972,2]
[381009346,1755939064607,-400.0,0.00013972,2]
[381009347,1755939064616,-605.11,0.00013972,2]
[381009348,1755939064626,-604.08,0.00013972,2]
[381009349,1755939064635,-786.08,0.00013972,2]
[381009350,1755939064645,-400.0,0.00013972,2]
[381009351,1755939064655,-400.0,0.00013972,2]
[381009352,1755939064664,-1113.52,0.00013972,2]
[381009353,1755939064674,-703.7,0.00013972,2]
[381009354,1755939064683,-400.0,0.00013972,2]
[381009355,1755939064692,-400.0,0.00013972,2]
[381009356,1755939064706,-692.0,0.00013972,2]
[381009357,1755939064716,-411.92,0.00013972,2]
[381009358,1755939064727,-1585.8,0.00013972,2]
[381009359,1755939064739,-400.0,0.00013972,2]
[381009360,1755939064748,-629.97,0.00013972,2]
[381009361,1755939064758,-1007.14,0.00013972,2]
[381009362,1755939064770,-787.29,0.00013972,2]
[381009363,1755939064779,-529.31,0.00013972,2]
[381009364,1755939064789,-583.53,0.00013972,2]
[381009365,1755939064799,-504.22,0.00013972,2]
[381009366,1755939064808,-400.0,0.00013972,2]
[381009367,1755939064817,-400.0,0.00013972,2]
[381009368,1755939064826,-400.94567895,0.00013972,2]
[381009369,1755939064836,-587.49,0.00013972,2]
[381009370,1755939064846,-400.0,0.00013972,2]
[381009371,1755939064856,-1125.68,0.00013972,2]
[381009372,1755939064865,-866.11,0.00013972,2]
[381009373,1755939064876,-400.0,0.00013972,2]
[381009374,1755939064885,-1557.8,0.00013972,2]
[381009375,1755939064895,-1360.81,0.00013972,2]
[381009376,1755939064905,-700.31,0.00013972,2]
[381009377,1755939064915,-1129.31,0.00013972,2]
[381009378,1755939064924,-622.11,0.00013972,2]
[381009379,1755939064934,-1043.98,0.00013972,2]
[381009380,1755939064944,-686.23,0.00013972,2]
[381009381,1755939064954,-666.69,0.00013972,2]
[381009382,1755939064965,-400.0,0.00013972,2]
[381009383,1755939064976,-400.0,0.00013972,2]
[381009384,1755939064986,-1528.14,0.00013972,2]
[381009385,1755939064996,-400.0,0.00013972,2]
[381009386,1755939065005,-1005.74,0.00013972,2]
[381009387,1755939065016,-493.59,0.00013972,2]
[381009388,1755939065107,-400.0,0.00013972,2]
[381009389,1755939065119,-1082.98,0.00013972,2]
[381009390,1755939065130,-472.14,0.00013972,2]
[381009391,1755939065139,-400.0,0.00013972,2]
[381009392,1755939065149,-546.8336414,0.00013972,2]
[381009393,1755939065158,-667.15,0.00013972,2]
[381009394,1755939065167,-400.0,0.00013972,2]
[381009395,1755939065177,-718.17,0.00013972,2]
[381009396,1755939065188,-400.0,0.00013972,2]
[381009397,1755939065198,-400.0,0.00013972,2]
[381009398,1755939065208,-400.0,0.00013972,2]
[381009399,1755939065218,-400.0,0.00013972,2]
[381009400,1755939065227,-668.03,0.00013972,2]
[381009401,1755939065238,-1238.33,0.00013972,2]
[381009402,1755939065249,-454.19,0.00013972,2]
[381009403,1755939065258,-1197.1,0.00013972,2]
[381009404,1755939065269,-2684.24,0.00013972,2]
[381009405,1755939065278,-400.0,0.00013972,2]
[381009406,1755939065288,-400.0,0.00013972,2]
[381009407,1755939065297,-400.0,0.00013972,2]
[381009408,1755939065307,-690.06,0.00013972,2]
[381009409,1755939065316,-400.0,0.00013972,2]
[381009410,1755939065326,-637.11,0.00013972,2]
[381009411,1755939065335,-409.41,0.00013972,2]
[381009412,1755939065344,-414.92,0.00013972,2]
[381009413,1755939065354,-445.1,0.00013972,2]
[381009414,1755939065364,-400.0,0.00013972,2]
[381009415,1755939065373,-1041.06,0.00013972,2]
[381009416,1755939065382,-400.0,0.00013972,2]
[381009417,1755939065392,-400.0,0.00013972,2]
[381009418,1755939065402,-607.83,0.00013972,2]
[381009419,1755939065412,-522.33,0.00013972,2]
[381009420,1755939065422,-401.92023094,0.00013972,2]
[381009421,1755939065433,-566.52,0.00013972,2]
[381009422,1755939065442,-400.0,0.00013972,2]
[381009423,1755939065452,-400.0,0.00013972,2]
[381009424,1755939065462,-400.0,0.00013972,2]
[381009425,1755939065471,-400.0,0.00013972,2]
[381009426,1755939065481,-855.94,0.00013972,2]
[381009427,1755939065491,-630.85,0.00013972,2]
[381009428,1755939065500,-400.0,0.00013972,2]
[381009429,1755939065510,-1311.72,0.00013972,2]
[381009430,1755939065521,-647.39,0.00013972,2]
[381009431,1755939065531,-467.67,0.00013972,2]
[381009432,1755939065540,-834.9,0.00013972,2]
[381009433,1755939065550,-1397.26,0.00013972,2]
[381009434,1755939065559,-400.0,0.00013972,2]
[381009435,1755939065568,-729.75,0.00013972,2]
[381009436,1755939065577,-672.3,0.00013972,2]
[381009437,1755939065587,-400.0,0.00013972,2]
[381009438,1755939065596,-400.0,0.00013972,2]
[381009439,1755939065606,-604.32,0.00013972,2]
[381009440,1755939065616,-686.64,0.00013972,2]
[381009441,1755939065626,-427.47,0.00013972,2]
[381009442,1755939065635,-2357.96,0.00013972,2]
[381009443,1755939065645,-790.97,0.00013972,2]
[381009444,1755939065655,-400.0,0.00013972,2]
[381009445,1755939065664,-400.0,0.00013972,2]
[381009446,1755939065673,-2325.6,0.00013972,2]
[381009447,1755939065682,-400.0,0.00013972,2]
[381009448,1755939065692,-403.26531337,0.00013972,2]
[381009449,1755939065705,-892.57,0.00013972,2]
[381009450,1755939065714,-745.26,0.00013972,2]
[381009451,1755939065723,-1287.92,0.00013972,2]
[381009452,1755939065733,-2770.66,0.00013972,2]
[381009453,1755939065744,-400.0,0.00013972,2]
[381009454,1755939065753,-400.0,0.00013972,2]
[381009455,1755939065763,-400.0,0.00013972,2]
[381009456,1755939065772,-685.37,0.00013972,2]
[381009457,1755939065781,-400.0,0.00013972,2]
[381009458,1755939065790,-924.8,0.00013972,2]
[381009459,1755939065800,-400.0,0.00013972,2]
[381009460,1755939065809,-400.0,0.00013972,2]
[381009461,1755939065818,-407.18,0.00013972,2]
[381009462,1755939065828,-677.07,0.00013972,2]
[381009463,1755939065837,-402.71,0.00013972,2]
[381009464,1755939065846,-1750.99,0.00013972,2]
[381009465,1755939065855,-400.0,0.00013972,2]
[381009466,1755939065864,-792.71,0.00013972,2]
[381009467,1755939065874,-423.31,0.00013972,2]
[381009468,1755939065884,-400.0,0.00013972,2]
[381009469,1755939065893,-839.44,0.00013972,2]
[381009470,1755939065902,-508.92,0.00013972,2]
[381009471,1755939065912,-446.74,0.00013972,2]
[381009472,1755939065921,-591.71,0.00013972,2]
[381009473,1755939065931,-944.25,0.00013972,2]
[381009474,1755939065940,-400.0,0.00013972,2]
[381009475,1755939065949,-502.39,0.00013972,2]
[381009476,1755939065958,-400.0,0.00013972,2]
[381009477,1755939065968,-1605.79,0.00013972,2]
[381009478,1755939065977,-400.0,0.00013972,2]
[381009479,1755939065986,-1231.43,0.00013972,2]
[381009480,1755939065995,-954.21,0.00013972,2]
[381009481,1755939066005,-400.0,0.00013972,2]
[381009482,1755939066015,-1067.81,0.00013972,2]
[381009483,1755939066024,-1114.49,0.00013972,2]
[381009484,1755939066033,-966.95,0.00013972,2]
[381009485,1755939066042,-400.0,0.00013972,2]
[381009486,1755939066054,-1006.15,0.00013972,2]
[381009487,1755939066063,-400.0,0.00013972,2]
[381009488,1755939066073,-400.0,0.00013972,2]
[381009489,1755939066085,-582.05,0.00013972,2]
[381009490,1755939066095,-681.49,0.00013972,2]
[381009491,1755939066105,-400.0,0.00013972,2]
[381009492,1755939066115,-472.02,0.00013972,2]
[381009493,1755939066125,-600.62,0.00013972,2]
[381009494,1755939066134,-400.0,0.00013972,2]
[381009495,1755939066144,-3311.61,0.00013972,2]
[381009496,1755939066154,-1016.95,0.00013972,2]
[381009497,1755939066163,-400.0,0.00013972,2]
[381009498,1755939066173,-636.18,0.00013972,2]
[381009499,1755939066183,-2900.39,0.00013972,2]
[381009500,1755939066192,-400.0,0.00013972,2]
[381009501,1755939066202,-848.38,0.00013972,2]
[381009502,1755939066211,-649.11,0.00013972,2]
[381009503,1755939066220,-715.33,0.00013972,2]
[381009504,1755939066229,-1619.12,0.00013972,2]
[381009505,1755939066239,-873.77,0.00013972,2]
[381009506,1755939066248,-400.0,0.00013972,2]
[381009507,1755939066257,-478.58,0.00013972,2]
[381009508,1755939066267,-400.0,0.00013972,2]
[381009509,1755939066276,-873.94,0.00013972,2]
[381009510,1755939066285,-1000.0,0.00013972,2]
[381009511,1755939066295,-901.32,0.00013972,2]
[381009512,1755939066304,-554.17,0.00013972,2]
[381009513,1755939066314,-400.0,0.00013972,2]
[381009514,1755939066324,-400.0,0.00013972,2]
[381009515,1755939066333,-400.0,0.00013972,2]
[381009516,1755939066343,-824.26,0.00013972,2]
[381009517,1755939066352,-615.53,0.00013972,2]
[381009518,1755939066361,-400.0,0.00013972,2]
[381009519,1755939066371,-816.18,0.00013972,2]
[381009520,1755939066380,-400.0,0.00013972,2]
[381009521,1755939066390,-760.57,0.00013972,2]
[381009522,1755939066399,-400.0,0.00013972,2]
[381009523,1755939066408,-603.06,0.00013972,2]
[381009524,1755939066418,-656.84,0.00013972,2]
[381009525,1755939066427,-952.12,0.00013972,2]
[381009526,1755939066437,-453.18,0.00013972,2]
[381009527,1755939066446,-400.0,0.00013972,2]
[381009528,1755939066456,-449.76,0.00013972,2]
[381009529,1755939066467,-856.61,0.00013972,2]
[381009530,1755939066476,-674.07,0.00013972,2]
[381009531,1755939066486,-921.46,0.00013972,2]
[381009532,1755939066496,-477.47,0.00013972,2]
[381009533,1755939066506,-954.18,0.00013972,2]
[381009534,1755939066515,-400.0,0.00013972,2]
[381009535,1755939066525,-566.68,0.00013972,2]
[381009536,1755939066534,-400.0,0.00013972,2]
[381009537,1755939066544,-1088.13,0.00013972,2]
[381009538,1755939066554,-400.0,0.00013972,2]
[381009539,1755939066563,-923.07,0.00013972,2]
[381009540,1755939066573,-752.12,0.00013972,2]
[381009541,1755939066582,-400.0,0.00013972,2]
[381009542,1755939066591,-414.1,0.00013972,2]
[381009543,1755939066601,-400.0,0.00013972,2]
[381009544,1755939066610,-538.24,0.00013972,2]
[381009545,1755939066618,-4335.37,0.00013972,2]
[381009546,1755939066629,-426.6,0.00013972,2]
[381009547,1755939066638,-562.49,0.00013972,2]
[381009548,1755939066647,-782.78,0.00013972,2]
[381009549,1755939066657,-400.0,0.00013972,2]
[381009550,1755939066666,-400.0,0.00013972,2]
[381009551,1755939066675,-907.47,0.00013972,2]
[381009552,1755939066685,-775.88,0.00013972,2]
[381009553,1755939066694,-400.0,0.00013972,2]
[381009554,1755939066706,-762.43,0.00013972,2]
[381009555,1755939066716,-1307.02,0.00013972,2]
[381009556,1755939066725,-576.9,0.00013972,2]
[381009557,1755939066734,-404.06,0.00013972,2]
[381009558,1755939066745,-1007.65,0.00013972,2]
[381009559,1755939066754,-503.95,0.00013972,2]
[381009560,1755939066764,-559.51,0.00013972,2]
[381009561,1755939066774,-421.91,0.00013972,2]
[381009562,1755939066783,-400.0,0.00013972,2]
[381009563,1755939066792,-400.0,0.00013972,2]
[381009564,1755939066802,-400.0,0.00013972,2]
[381009565,1755939066812,-545.69,0.00013972,2]
[381009566,1755939066822,-743.95,0.00013972,2]
[381009567,1755939066831,-521.3,0.00013972,2]
[381009568,1755939066840,-615.82,0.00013972,2]
[381009569,1755939066850,-400.0,0.00013972,2]
[381009570,1755939066859,-782.98,0.00013972,2]
[381009571,1755939066869,-400.0,0.00013972,2]
[381009572,1755939066879,-1476.63,0.00013972,2]
[381009573,1755939066888,-400.0,0.00013972,2]
[381009574,1755939066897,-669.75,0.00013972,2]
[381009575,1755939066907,-12873.11,0.00013972,2]
[381009576,1755939066916,-807.4,0.00013972,2]
[381009577,1755939066926,-683.45,0.00013972,2]
[381009578,1755939066935,-400.0,0.00013972,2]
[381009579,1755939066945,-462.62,0.00013972,2]
[381009580,1755939066955,-400.0,0.00013972,2]
[381009581,1755939066964,-400.0,0.00013972,2]
[381009582,1755939066974,-507.71,0.00013972,2]
[381009583,1755939066983,-400.0,0.00013972,2]
[381009584,1755939066992,-1271.98,0.00013972,2]
[381009585,1755939067002,-1594.64,0.00013972,2]
[381009586,1755939067011,-1104.28,0.00013972,2]
[381009587,1755939067023,-400.0,0.00013972,2]
[381009588,1755939067033,-400.0,0.00013972,2]
[381009589,1755939067042,-400.0,0.00013972,2]
[381009590,1755939067052,-568.82,0.00013972,2]
[381009591,1755939067062,-734.9,0.00013972,2]
[381009592,1755939067072,-735.83,0.00013972,2]
[381009593,1755939067081,-1088.25,0.00013972,2]
[381009594,1755939067091,-459.89,0.00013972,2]
[381009595,1755939067102,-893.15,0.00013972,2]
[381009596,1755939067111,-575.51,0.00013972,2]
[381009597,1755939067121,-519.87,0.00013972,2]
[381009598,1755939067131,-400.0,0.00013972,2]
[381009599,1755939067140,-400.0,0.00013972,2]
[381009600,1755939067150,-1006.21,0.00013972,2]
[381009601,1755939067160,-400.0,0.00013972,2]
[381009602,1755939067170,-400.0,0.00013972,2]
[381009603,1755939067181,-664.59,0.00013972,2]
[381009604,1755939067190,-2096.81,0.00013972,2]
[381009605,1755939067199,-400.0,0.00013972,2]
[381009606,1755939067208,-1219.14,0.00013972,2]
[381009607,1755939067217,-400.0,0.00013972,2]
[381009608,1755939067227,-1014.43,0.00013972,2]
[381009609,1755939067236,-400.0,0.00013972,2]
[381009610,1755939067245,-2729.83,0.00013972,2]
[381009611,1755939067255,-400.0,0.00013972,2]
[381009612,1755939067265,-400.0,0.00013972,2]
[381009613,1755939067274,-400.0,0.00013972,2]
[381009614,1755939067284,-400.0,0.00013972,2]
[381009615,1755939067293,-564.28,0.00013972,2]
[381009616,1755939067303,-400.0,0.00013972,2]
[381009617,1755939067313,-400.0,0.00013972,2]
[381009618,1755939067322,-446.32,0.00013972,2]
[381009619,1755939067331,-541.18738501,0.00013972,2]
[381009620,1755939067341,-466.46,0.00013972,2]
[381009621,1755939067350,-505.86,0.00013972,2]
[381009622,1755939067359,-400.0,0.00013972,2]
[381009623,1755939067369,-578.22,0.00013972,2]
[381009624,1755939067379,-432.01,0.00013972,2]
[381009625,1755939067388,-458.79,0.00013972,2]
[381009626,1755939067398,-4548.89,0.00013972,2]
[381009627,1755939067407,-902.17,0.00013972,2]
[381009628,1755939067416,-945.49,0.00013972,2]
[381009629,1755939067426,-185.26698282,0.00013972,2]
[381009630,1755939067435,-890.11,0.00013972,2]
[381009631,1755939067444,-425.39,0.00013972,2]
[381009632,1755939067454,-400.0,0.00013972,2]
[381009633,1755939067463,-400.0,0.00013972,2]
[381009634,1755939067473,-783.24,0.00013972,2]
[381009635,1755939067482,-637.51,0.00013972,2]
[381009636,1755939067492,-704.32,0.00013972,2]
[381009637,1755939067501,-673.78,0.00013972,2]
[381009638,1755939067510,-400.0,0.00013972,2]
[381009639,1755939067520,-463.46,0.00013972,2]
[381009640,1755939067529,-736.8,0.00013972,2]
[381009641,1755939067538,-400.0,0.00013972,2]
[381009642,1755939067547,-400.0,0.00013972,2]
[381009643,1755939067556,-400.0,0.00013972,2]
[381009644,1755939067566,-500.0,0.00013973,2]
[381009645,1755939067575,-500.0,0.00013973,2]
[381009646,1755939067585,-500.0,0.00013973,2]
[381009647,1755939067594,-300.0,0.00013973,2]
[381009648,1755939067604,-1814.31,0.00013987,2]
[381009649,1755939067613,-433.0,0.00014015,2]
[381009650,1755939067622,-1000.0,0.00014016,2]
[381009651,1755939067631,-1736.26,0.00014027,2]
[381009652,1755939067642,-443.0,0.0001407,2]
[381009653,1755939067651,-283.22648377,0.00014116,2]
[381009654,1755939067661,-2500.0,0.00014164,2]
[381009655,1755939067671,-889.0,0.00014185,2]
[381009656,1755939067680,-500.0,0.00014185,2]
[381009657,1755939067689,-508.0,0.00014185,2]
[381009658,1755939067700,-500.0,0.00014185,2]
[381009659,1755939067710,-648.05435818,0.00014185,2]
[381009660,1755939067720,-700.0,0.000142,2]
[381009661,1755939067729,-3007.0,0.0001423,2]
[381009662,1755939067738,-7738.15423372,0.0001423,2]
[381009663,1755939067748,-137416.82268413,0.00014246,2]
[381009664,1755939068652,-182574.02484409,0.00014246,2]
[381009665,1755939068664,-2229.10653185,0.00014246,2]
[381009666,1755939068676,-4316.0,0.00014246,2]
[381009667,1755939069352,-184.56233596,0.000123,2]
[381009668,1755939069363,-400.0,0.00013698,2]
[381009669,1755939069372,-266.12,0.000137,2]
[381009670,1755939069382,-266.12,0.000137,2]
[381009671,1755939069392,-341.56807846,0.00013972,2]
[381009672,1755939069402,-8686.40192012,0.00014246,2]
[381009673,1755939069413,-15087.17607864,0.00014246,2]
[381009674,1755939069425,-29557.95715234,0.00014246,2]
[381009675,1755939069452,-883.15138334,0.00014246,2]
[381009676,1755939069463,-801.7962523,0.00014246,2]
[381009677,1755939069474,-1529.62400003,0.00014246,2]
[381009678,1755939070209,-799.08,0.000114,2]
[381009679,1755939070219,-288.26876115,0.00013698,2]
[381009680,1755939070230,-383.0431476,0.00013698,2]
[381009681,1755939070274,-166.06,0.00013566,2]
[381009682,1755939070284,-1634.84809125,0.00013698,2]
[381009683,1755939070294,-444.12,0.00013698,2]
[381009684,1755939070303,-1591.54,0.000137,2]